Cogmind - Beta 16.1 @@@ ROGUE MODE // 2026.03.15 @ 18:39:13 Player: kim.jet.wav Result: Self-destructed Performance ------------- Evolutions (2) 1000 Regions Visited (3) 600 Robots Destroyed (29) 145 Value Destroyed (660) 660 Prototype IDs (2) 40 Alien Tech Used (0) 0 Bonus (0) 0 TOTAL SCORE: 2445 Bonus ------- None Cogmind --------- Core Integrity 463/550 Matter 195/300 Energy 402/460 System Corruption 0% Temperature Warning (369) Movement Walking (470) Ox5 Location -8/Materials Parts ------- > --- POWER (2) -------- Cooled Ion Engine Cooled Ion Engine > --- PROPULSION (3) --- Aluminum Leg Aluminum Leg Aluminum Leg > --- UTILITY (3) ------ Huge Storage Unit Structural Scanner Seismic Detector > --- WEAPON (3) ------- EM Pulse Gun Heavy Particle Gun Light EM Pulse Cannon > --- INVENTORY (25) --- Nuclear Core Nuclear Core Particle Charger ECM Suite Hacking Suite Heavy EM Pulse Gun Beam Rifle Beam Cannon Heavy Particle Cannon Mini Grenade Launcher Peak State ------------ > --- POWER ------------ Cooled Ion Engine Cooled Ion Engine > --- PROPULSION ------- Aluminum Leg Aluminum Leg Aluminum Leg > --- UTILITY ---------- Huge Storage Unit Structural Scanner Seismic Detector > --- WEAPON ----------- EM Pulse Gun Heavy Particle Gun Mini Grenade Launcher > --- INVENTORY -------- Nuclear Core Nuclear Core Particle Charger ECM Suite Hacking Suite Heavy EM Pulse Gun Beam Rifle Light EM Pulse Cannon Beam Cannon [Rating: 21] Favorites ----------- Power Cooled Ion Engine Engine Cooled Ion Engine Propulsion Aluminum Leg Leg Aluminum Leg Utility Seismic Detector Device Seismic Detector Storage Small Storage Unit Weapon EM Pulse Gun Energy Gun EM Pulse Gun Energy Cannon Beam Cannon Launcher Mini Grenade Launcher Build | -11 -10 -9 -8 ------- Run | Yrd Mat Mat Mat Slots Evolved 4 | . . 2 2 Power 1 | . . . 1 Propulsion 1 | . . . 1 Utility 1 | . . 1 . Weapon 1 | . . 1 . Parts Attached 24 | 7 5 6 6 Power 6 | 1 2 2 1 Engine 6 | 1 2 2 1 Core . | . . . . Reactor . | . . . . Propulsion 5 | 2 1 1 1 Treads . | . . . . Leg 5 | 2 1 1 1 Wheel . | . . . . Hover . | . . . . Flight . | . . . . Utility 4 | 2 . 1 1 Device 2 | 1 . 1 . Storage 2 | 1 . . 1 Processor . | . . . . Hackware . | . . . . Protection . | . . . . Artifact . | . . . . Weapon 9 | 2 2 2 3 Energy Gun 6 | 2 1 2 1 Energy Cannon 2 | . 1 . 1 Ballistic Gun . | . . . . Ballistic Cannon . | . . . . Launcher 1 | . . . 1 Special Weapon . | . . . . Impact Weapon . | . . . . Slashing Weapon . | . . . . Piercing Weapon . | . . . . Special Melee Weapon . | . . . . Unidentified Prototypes 2 | . . 1 1 Parts Lost 2 | . 1 . 1 Power . | . . . . Propulsion 1 | . . . 1 Utility . | . . . . Weapon 1 | . 1 . . Highest Loss Streak 1 | . 1 . 1 To Critical Strikes . | . . . . Average Backups 7 | 1 6 7 8 Power 1 | . 1 1 1 Propulsion 1 | . 1 2 . Utility 1 | . . 1 2 Weapon 2 | 1 2 2 3 Tool/Special . | . . . . Unused Backups 11 | . 3 2 6 Power 4 | . 2 . 2 Propulsion 2 | . 1 1 . Utility 3 | . . . 3 Weapon 1 | . . . 1 Tool/Special 1 | . . 1 . Average Slot Usage (%) 99 | . 99 99 99 Engine 13 | . 14 11 17 Leg 25 | . 28 22 27 Device 18 | . 14 22 18 Storage 11 | . 14 11 9 Energy Gun 18 | . 16 21 18 Energy Cannon 10 | . 11 11 7 Peak Build Rating 21 | 7 8 14 21 Average Rating 11 | 5 7 11 17 On Entrance 7 | . 7 8 13 Avg Prop Armor Cover (%) 25 | 25 . . . Naked Turns . | . . . . Heaviest Build 106 | 13 16 24 106 Greatest Support 30 | 20 20 20 30 Greatest Overweight (x) 3 | 1 . 1 3 Average Overweight (x) . | . . . 1 Largest Inventory Capacity 25 | 8 8 8 25 Average Capacity 10 | 7 8 8 17 Most Carried 10 | 3 8 8 10 Average Carried 7 | 1 6 7 8 Final Capacity 25 | 8 8 8 25 Final Carried 10 | 2 8 8 10 Class Distribution -------------------- 57% | Skirmisher 36% | Mutant 5% | Scavenger-Skirmisher Dominant Class ---------------- Mutant | -10/Materials Skirmisher | -9/Materials Skirmisher | -8/Materials Resources | -11 -10 -9 -8 ----------- Run | Yrd Mat Mat Mat Matter Collected 420 | 270 70 80 . Remotely . | . . . . Salvage Created 1153 | 113 422 530 88 Parts 53 | 4 21 27 1 Haulers Intercepted 1 | . . 1 . Recyclers Shooed 5 | . 2 3 . Parts Field Recycled . | . . . . Retrieved Matter . | . . . . Parts Self-Destructed . | . . . . Prevented . | . . . . Parts Restored . | . . . . Kills | -11 -10 -9 -8 ------- Run | Yrd Mat Mat Mat Combat Hostiles Destroyed 17 | . 5 7 5 Guns 8 | . 2 4 2 Cannons 6 | . 3 3 . AOE 3 | . . . 3 Classes Destroyed 11 | 2 4 3 2 Worker 2 | . 1 1 . Builder 1 | . . 1 . Tunneler 1 | 1 . . . Hauler 1 | . . 1 . Recycler 4 | 1 2 1 . Operator 2 | . 1 1 . Watcher 1 | . 1 . . Swarmer 4 | . . . 4 Grunt 11 | . 5 6 . Duelist 1 | . . . 1 Sentry 1 | . . 1 . Best Kill Streak 5 | 2 3 5 4 Combat Bots Only 4 | . 1 4 4 Max Kills in Single Turn 2 | 1 1 1 2 Gunslinging . | . . . . Exploded 2 | . . . 2 Melee . | . . . . Uniques/NPCs Destroyed . | . . . . Combat | -11 -10 -9 -8 -------- Run | Yrd Mat Mat Mat Hostile Shots Fired 76 | . 17 18 41 Missed 18 | . 3 5 10 Hits 58 | . 14 13 31 Projectile 58 | . 14 13 31 Critical Strikes 2 | . 1 . 1 Part Disruptions 1 | . . . 1 Damage Taken 884 | . 167 149 568 Core 122 | . 23 12 87 Absorbed by Shields . | . . . . Regen/Repaired (Parts) 103 | . 103 . . Core Remaining (%) 95 | 100 90 97 . Volleys Fired 74 | 4 33 26 11 Largest 3 | 2 2 3 3 Hottest 161 | 80 100 161 151 Shots Fired 152 | 8 57 59 28 Gun 104 | 8 24 50 22 Cannon 44 | . 33 9 2 Launcher 4 | . . . 4 Special . | . . . . Kinetic . | . . . . Thermal 82 | . 38 33 11 Explosive 4 | . . . 4 Electromagnetic 66 | 8 19 26 13 Robot Hit Streak 7 | 6 7 6 5 Robot Miss Streak 4 | 1 3 4 2 Penetration Max . | . . . . Secondary Targets . | . . . . Shots Hit Robots 77 | 6 27 32 12 Core Hits 38 | 3 13 15 7 Critical Kills . | . . . . Critical Parts Destroyed . | . . . . Critical Strikes 3 | . . 2 1 Burn 2 | . . 2 . Corrupt 1 | . . . 1 Melee Attacks . | . . . . Impact . | . . . . Slashing . | . . . . Piercing . | . . . . Sneak Attacks . | . . . . Combat Hostiles . | . . . . Follow-up Attacks . | . . . . Damage Inflicted 1514 | 125 462 539 388 Guns 895 | 79 229 406 181 Cannons 279 | . 192 87 . Explosions 340 | 46 41 46 207 Melee . | . . . . Ramming . | . . . . Kinetic . | . . . . Thermal 754 | 46 268 277 163 Explosive 167 | . . . 167 Electromagnetic 593 | 79 194 262 58 Impact . | . . . . Slashing . | . . . . Piercing . | . . . . Highest Corruption . | . . . . Average Corruption . | . . . . Corruption Purged . | . . . . Corruption Blocked . | . . . . Overload Shots . | . . . . Overflow Damage 29 | 16 . . 13 Projectiles . | . . . . Explosions 29 | 16 . . 13 Melee . | . . . . Knockbacks . | . . . . Impact . | . . . . Kinetic . | . . . . Secondary . | . . . . Self-Inflicted Damage 226 | . . . 226 Shots 5 | . . . 5 Rammed . | . . . . Targets Rammed . | . . . . Kicked . | . . . . Crushed . | . . . . Highest Temperature 389 | 72 216 389 369 Average Temperature 109 | 38 65 157 152 Received Heat Transfer 318 | . 108 75 135 Effects 3 | . . 1 2 Energy Bleed 1 | . . . 1 Interference 1 | . . 1 . Short Circuit 1 | . . . 1 Siege Activations . | . . . . Martial Activations . | . . . . Shielding Activations . | . . . . Robots Disrupted . | . . . . Combat Hostiles . | . . . . Robots Corrupted . | . . . . Combat Hostiles . | . . . . Parts Fried 1 | . . 1 . Impact Corruptions . | . . . . Robots Melted . | . . . . Combat Hostiles . | . . . . Parts Melted 1 | . 1 . . Heat Transferred 1621 | 50 532 730 309 Parts Sabotaged . | . . . . Parts Stolen . | . . . . Parts Stripped . | . . . . Power Chain Reactions 5 | 1 1 1 2 Alert | -11 -10 -9 -8 ------- Run | Yrd Mat Mat Mat Maximum Alert Level . | . . . . Low Security (%) 100 | 100 100 100 100 Level 1 . | . . . . Level 2 . | . . . . Level 3 . | . . . . Level 4 . | . . . . Level 5 . | . . . . High Security . | . . . . Max Security . | . . . . Peak Influence 184 | 10 92 114 184 Initial 28 | . . . 28 Average 30 | . 28 33 34 Influence Increases 704 | 10 201 259 234 Destroy 0b10 Robot/C 340 | . 100 140 100 Destroy 0b10 Robot/NC 60 | 10 25 25 . Destroy Leader 94 | . 32 42 20 Successful Hack 7 | . 7 . . Disable Machine 60 | . . 15 45 Destroy Structure 68 | . 7 7 54 Lose Combat Pursuer 75 | . 30 30 15 Influence Decreases 528 | 10 201 190 127 Entered New Map 41 | . . . 41 Time Decay 467 | 10 191 190 76 Lost Part 20 | . 10 . 10 Squads Dispatched 6 | . 2 3 1 Investigation 3 | . 1 2 . Extermination . | . . . . Reinforcement 2 | . 1 1 . Assault . | . . . . Garrison 1 | . . . 1 Intercept . | . . . . Searches Triggered . | . . . . Construction Impeded . | . . . . Haulers Reinforced . | . . . . Active Scanning Responses . | . . . . Cargo Convoy Interrupts . | . . . . Stealth | -11 -10 -9 -8 --------- Run | Yrd Mat Mat Mat Distress Signals 2 | . 2 . . Communications Jammed . | . . . . Distress Signals . | . . . . Times Spotted 32 | . 12 11 9 Peak Tracking Total 5 | . 3 5 4 Tactical Retreats 5 | . 2 2 1 Traps | -11 -10 -9 -8 ------- Run | Yrd Mat Mat Mat Traps Triggered . | . . . . Indirectly . | . . . . Trap Hack Attempts . | . . . . Triggered . | . . . . Disarmed . | . . . . Reprogrammed . | . . . . Reused . | . . . . Traps Extracted . | . . . . Installed . | . . . . Triggered . | . . . . Machines | -11 -10 -9 -8 ---------- Run | Yrd Mat Mat Mat Machines Disabled 4 | . . 1 3 Max in Single Turn 2 | . . 1 2 Machines Repaired . | . . . . Machines Dismantled . | . . . . Machines Sabotaged . | . . . . Overloaded Fab Kills . | . . . . Hacking | -11 -10 -9 -8 --------- Run | Yrd Mat Mat Mat Machines Accessed 6 | . 3 3 . Terminals 5 | . 2 3 . Fabricators . | . . . . Repair Stations 1 | . 1 . . Recycling Units . | . . . . Scanalyzers . | . . . . Garrison Access . | . . . . Total Hacks 17 | . 12 5 . Successful 11 | . 9 2 . Failed 6 | . 3 3 . Catastrophic 2 | . . 2 . Database Lockouts . | . . . . Manual 3 | . . 3 . Terminals 11 | . 6 5 . Fabricators . | . . . . Repair Stations 6 | . 6 . . Recycling Units . | . . . . Scanalyzers . | . . . . Garrison Access . | . . . . Terminal Hacks 5 | . 3 2 . Record 1 | . . 1 . Robot Analysis 1 | . 1 . . Dispatch Records 1 | . 1 . . Reinforcement Status 1 | . 1 . . Hauler Manifests 1 | . . 1 . Fabricator Hacks . | . . . . Repair Station Hacks 6 | . 6 . . Scan Component 3 | . 3 . . Repair 3 | . 3 . . Recycling Unit Hacks . | . . . . Scanalyzer . | . . . . Garrison Access Hacks . | . . . . Unauthorized Hacks . | . . . . Terminals . | . . . . Fabricators . | . . . . Repair Stations . | . . . . Recycling Units . | . . . . Scanalyzers . | . . . . Garrison Access . | . . . . Data Cores Recovered . | . . . . Used . | . . . . Hacking Detections 2 | . 1 1 . Full Trace Events 2 | . 1 1 . Feedback Events . | . . . . Feedback Blocked . | . . . . Robot Schematics Acquired . | . . . . Robots Built . | . . . . Authchips . | . . . . Time . | . . . . Total Robot Build Rating . | . . . . Part Schematics Acquired . | . . . . Parts Built . | . . . . Authchips . | . . . . Time . | . . . . Total Part Build Rating . | . . . . Part Studies Acquired . | . . . . Parts Repaired 3 | . 3 . . Time 78 | . 78 . . Parts Recycled . | . . . . Recycled Matter . | . . . . Retrieved Matter . | . . . . Retrieved Components . | . . . . Parts Scanalyzed . | . . . . Part Schematics Acquired . | . . . . Parts Damaged . | . . . . Bothacking | -11 -10 -9 -8 ------------ Run | Yrd Mat Mat Mat Used RIF Installer . | . . . . Robots Hacked . | . . . . Non-combat . | . . . . Combat . | . . . . Robot Hacks Applied . | . . . . Relay Couplers Released . | . . . . Fabnet Peak Effective % . | . . . . Robots Rewired . | . . . . Allies Hacked . | . . . . Hacks Repelled . | . . . . Allies | -11 -10 -9 -8 -------- Run | Yrd Mat Mat Mat Total Allies . | . . . . Largest Group . | . . . . Highest-Rated Group . | . . . . Highest-Rated Ally . | . . . . Total Orders . | . . . . Ally Attacks . | . . . . Total Damage . | . . . . Kills . | . . . . Allies Corrupted . | . . . . Allies Melted . | . . . . Intel | -11 -10 -9 -8 ------- Run | Yrd Mat Mat Mat Active Infowar (turns) 1904 | 26 648 696 534 Structural 1229 | . . 695 534 Seismic 1904 | 26 648 696 534 Robot Analysis Total 1 | . 1 . . Derelict Logs Recovered . | . . . . Drone Launches . | . . . . Drone Recoveries . | . . . . Exploration | -11 -10 -9 -8 ------------- Run | Yrd Mat Mat Mat Turns Passed 1956 | 78 648 696 534 Spaces Moved 971 | 56 335 399 181 Core 20 | 20 . . . Treads . | . . . . Legs 951 | 36 335 399 181 Wheels . | . . . . Hover . | . . . . Flight . | . . . . Fastest Speed 50 | 50 120 120 190 Average Speed 153 | 95 120 145 250 Slowest Speed 330 | 120 120 190 330 Overloaded Moves . | . . . . Propulsion Burnouts . | . . . . Robots Hopped . | . . . . Potential Cave-ins . | . . . . Cave-ins Triggered . | . . . . Exploration Rate (%) 25 | 3 47 37 15 Regions Visited 3 Branch Regions . Pre-discovered Areas . | . . . . Known Exits Taken . | . . . . Unknown Exits Taken 3 | 1 1 1 . Scrap Searched . | . . . . Spaces Dug . | . . . . Terrain Destroyed 69 | 3 5 4 57 Melee . | . . . . Projectile . | . . . . AOE 69 | 3 5 4 57 Terrain Rammed . | . . . . Walls Destroyed . | . . . . Machines Disabled . | . . . . Actions | -11 -10 -9 -8 --------- Run | Yrd Mat Mat Mat Total 1295 | 69 525 463 238 Wait 186 | . 135 20 31 Move 968 | 55 334 398 181 Hop . | . . . . Pick Up 24 | 3 11 5 5 Fast Attach 9 | 6 1 1 1 Attach 8 | 1 2 2 3 Detach 2 | . 1 . 1 Swap 12 | . 4 5 3 Drop 12 | . 4 6 2 Fire 74 | 4 33 26 11 Melee . | . . . . Ram . | . . . . Kick . | . . . . Crush . | . . . . Escape Stasis . | . . . . Rewire . | . . . . Trap . | . . . . Miscellaneous . | . . . . Route ------- -11/Scrapyard -10/Materials -9/Materials (discovered 2 exits: [*Mat] / [*Min]) -8/Materials History --------- Turn | Location | Event 8 | -11/Scrapyard | Discovered new exit (range 15) 79 | -11/Scrapyard | Entered Materials 300 | -10/Materials | Build established: Mutant 440 | -10/Materials | Discovered new exit (range 8) 473 | -10/Materials | Repaired Beam Cannon 687 | -10/Materials | Repaired Ion Engine 714 | -10/Materials | Repaired Aluminum Leg 727 | -10/Materials | Entered another Materials area 727 | -9/Materials | Evolved 2 slots: Utility x1, Weapon x1 967 | -9/Materials | Discovered new exit (range 13) 1029 | -9/Materials | Build established: Skirmisher 1165 | -9/Materials | Discovered new exit (range 5) 1423 | -9/Materials | Entered another Materials area 1423 | -8/Materials | Evolved 2 slots: Power x1, Propulsion x1 1945 | -8/Materials | Garrison activated, responded to threat 1957 | -8/Materials | Self-destructed Last Messages --------------- 01886_ U-05 Engineer lays Concrete. 01887_ The unstable cave ceiling collapses. 01887_ U-05 Engineer builds a Wall. 01893_ Acquired Hvy. Particle Cannon. 01895_ The unstable cave ceiling collapses. 01896_ U-05 Engineer lays Concrete. 01897_ U-05 Engineer builds a Wall. 01902_ U-05 Engineer lays Concrete. 01904_ U-05 Engineer builds a Door. 01916_ U-05 Engineer builds a Wall. 01939_ Chain reaction triggered in Imp. Ion Engine. 01939_ L-31 Rogue destroyed. 01939_ Neutrino Reactor explodes. 01939_ Terminal disabled. 01945_ G-47 Trooper calls for garrison reinforcements. 01945_ ALERT: Activating Garrison Access M001. 01955_ Overheating: Energy bleed (-90). 01956_ Critical hit (Burn: +37). 01957_ Aluminum Leg broken. 01957_ Overheating: Short circuit. Map ----- +----------------------------------------------------+ | ?????????????? ^^ ##???? | | ??????????????## ^ """ ####?? | | ??????????????### ##### G" #######+#####?? | | ?????????????????+##### """ ### ##?? | | ????????????????????? # ### ##?? | | ????????????????????? # ### ##?? | | ????????????????????? # """ # ##?? | | ????????????????????? + """ ! + ##?? | | ????????????????????? # """ # ##?? | | ????????????????????? # ## ##?? | | ????????????????????? # ## ##?? | | ????????????????????? # """ # ##?? | | ?????????????????????## """ ## ######?? | | ?????????????????????## """ # #######?? | | ?????????????????????## # #???????? | | ????????????????????### ## #####????? | | ????????????????????####g####### ## #######??? | | ????????????????????##= ## ## ####??? | | ????????????????????## """ ## # ##??? | | ????????????????????## " ## # / =####?? | | ????????????????????##[ / ## # ###?? | | ????????????????????## ## # ##?? | | ????????????????????##= / ## # ####?? | | ????????????????????## ## # ###?? | | ???????????????????? # ]% ;g + ####?? | | ???????????????????? #] @ ##+### ## ###?? | | ???????????????????? ## #### ###?? | | ???????????????????? ########### ! #####??? | | ?????????????????????########### [[ #####??? | | ??????????????????????????????## [[ ##?????? | | ??????????????????????????????## [[ ##?????? | | ??????????????????????????????## ##?????? | | ??????????????????????????????##########?????? | | ??????????????????????????????##########?????? | | ?????????????????????????????????????????????? | | ?????????????????????????????????????????????? | | ?????????????????????????????????????????????? | | ?????????????????????????????????????????????? | | ?????????????????????????????????????????????? | | ?????????????????????????????????????????????? | | ?????????????????????????????????????????????? | | ?????????????????????????????????????????????? | | ?????????????????????????????????????????????? | | ?????????????????????????????????????????????? | | ?????????????????????????????????????????????? | | ?????????????????????????????????????????????? | | ?????????????????????????????????????????????? | | | | | | | +----------------------------------------------------+ Best States ------------- Heat Dissipation 31 Energy Generation 23 Energy Capacity 460 Matter Stores 300 Matter Capacity 300 Sight Range 16 Terrain Scan Density 10 Evasion (%) 55 Item Schematics ----------------- None Robot Schematics ------------------ None Fabricated ------------ Nothing Repaired ---------- Beam Cannon | 68% | -10/Materials Ion Engine | 45% | -10/Materials Aluminum Leg | 57% | -10/Materials Studied --------- None Alien Tech Used ----------------- None Achievements -------------- None Challenges ------------ None Game ------ Seed BiocellProcessingFrame Manual? 0 Play Time 00:41:51 Cumulative 61.3 hours Start 2026.03.15 @ 12:02:02 End 2026.03.15 @ 18:39:13 Sessions 9 Manual Loads 0 Difficulty Rogue Special Mode None Game No. 234 Rogue 234 Adventurer 0 Explorer 0 Win Type - Total 0 Types 0/0/0/0/0/0/0/0/0/0 Lore% 28 Gallery% 22 Achievement% 17 Wizard Run 0 Options --------- Layout 0 ASCII 1 Keyboard 1 Movement Numpad Keybinds 1 Fullscreen 1 Font 18/X11 Map View 76x50 Zoom Use 0% Tactical HUD 1 Map Filters NONE Filters NONE Steam 1 RUN: 5689a73f-864f-403a-8f8a-9ee0f832ea93